bitfinex-derivatives/quotes_SOLF0:USTF0_20260218
["timestamp","ask_amount","ask_price","bid_price","bid_amount"]
[1771441734867,45.08583771,81.411,81.323,46.40692601]
[1771441735069,82.0,81.416,81.323,46.40692601]
[1771441735070,45.08583771,81.409,81.323,46.40692601]
[1771441735668,45.08583771,81.4,81.355,11.0674]
[1771441736168,45.08583771,81.4,81.345,46.40692601]
[1771441736766,45.08583771,81.4,81.361,11.0666]
[1771441738870,45.08583771,81.4,81.353,11.0677]
[1771441739264,45.08583771,81.4,81.345,46.40692601]
[1771441739666,82.0,81.399,81.345,46.40692601]
[1771441739870,128.51056225,81.399,81.359,11.067]
[1771441740173,46.51056225,81.398,81.345,46.40692601]
[1771441740372,46.51056225,81.382,81.327,46.66019272]
[1771441741769,46.51056225,81.378,81.333,11.0704]
[1771441742172,46.51056225,81.378,81.327,46.66019272]
[1771441743169,46.51056225,81.376,81.332,11.0706]
[1771441743864,46.51056225,81.376,81.327,46.66019272]
[1771441743865,0.07789522,81.362,81.338,11.0698]
[1771441750067,0.07789522,81.362,81.347,11.0685]
[1771441750670,116.88,81.384,81.327,46.66019272]
[1771441750875,8.28766049,81.42,81.295,49.19]
[1771441750876,46.51056225,81.403,81.36,11.0668]
[1771441751074,128.51056225,81.403,81.36,11.0668]
[1771441751271,245.43056225,81.403,81.36,11.0668]
[1771441751478,116.96,81.402,81.36,11.0668]
[1771441751673,11.36843675,81.436,81.351,46.66019272]
[1771441751879,46.51056225,81.42,81.352,46.66019272]
[1771441752080,46.51056225,81.42,81.35,8.28766049]
[1771441752081,46.51056225,81.42,81.374,46.66019272]
[1771441752495,46.51056225,81.433,81.374,46.66019272]
[1771441752688,8.28766049,81.48,81.392,46.66019272]
[1771441752890,8.28766049,81.46,81.373,77.4]
[1771441753086,126.33737793,81.459,81.374,46.66019272]
[1771441753389,9.27737793,81.458,81.374,46.66019272]
[1771441753596,126.33737793,81.457,81.374,46.66019272]
[1771441753786,8.28766049,81.44,81.361,46.66019272]
[1771441753988,126.33737793,81.439,81.361,46.66019272]
[1771441754190,9.27737793,81.438,81.361,46.66019272]
[1771441754492,11.0594,81.416,81.365,11.0661]
[1771441754799,46.51056225,81.414,81.347,46.66019272]
[1771441755293,46.51056225,81.414,81.382,0.07757345]
[1771441755495,46.51502858,81.438,81.382,0.07757345]
[1771441755695,46.51502858,81.436,81.382,0.07757345]
[1771441755895,46.51502858,81.429,81.382,0.07757345]
[1771441756094,46.51502858,81.427,81.359,47.79131507]
[1771441756297,46.51502858,81.425,81.378,11.0644]
[1771441756984,46.51502858,81.423,81.378,11.0644]
[1771441757393,46.51502858,81.423,81.393,0.07782622]
[1771441758495,46.51502858,81.42,81.369,11.0655]
[1771441758696,46.51502858,81.42,81.359,47.79131507]
[1771441758896,46.51502858,81.418,81.359,47.79131507]
[1771441759690,46.51502858,81.413,81.368,11.0657]
[1771441760996,82.0,81.419,81.38,47.79131507]
[1771441761192,46.51502858,81.43,81.38,47.79131507]
[1771441762095,46.51502858,81.43,81.388,11.063]
[1771441763995,11.0575,81.429,81.388,11.063]
[1771441764194,129.1175,81.429,81.388,11.063]
[1771441764392,57.57252858,81.429,81.388,11.063]
[1771441764598,118.12,81.428,81.388,11.063]
[1771441764798,57.57252858,81.429,81.388,11.063]
[1771441765301,57.57252858,81.429,81.381,11.064]
[1771441765493,46.51502858,81.421,81.365,47.79131507]
[1771441765696,46.51502858,81.419,81.35,47.79131507]
[1771441766100,8.28093735,81.42,81.35,47.79131507]
[1771441766101,46.51502858,81.397,81.35,47.79131507]
[1771441766404,46.51502858,81.395,81.348,11.0685]
[1771441767098,0.07750865,81.382,81.348,11.0685]
[1771441770199,0.07750865,81.382,81.348,58.85981507]
[1771441770599,0.07750865,81.382,81.348,47.79131507]
[1771441771498,0.07750865,81.382,81.344,11.069]
[1771441773403,11.0641,81.381,81.335,11.0702]
[1771441773602,11.0641,81.381,81.333,47.79131507]
[1771441774306,46.51502858,81.386,81.342,11.0693]
[1771441775302,8.28093735,81.4,81.327,77.4]
[1771441775303,46.51502858,81.407,81.346,47.79131507]
[1771441775895,46.51502858,81.407,81.363,11.0664]
[1771441776101,0.07754398,81.383,81.363,11.0664]
[1771441777203,46.51502858,81.407,81.369,11.0656]
[1771441777405,46.51502858,81.407,81.359,47.79131507]
[1771441777406,46.51502858,81.406,81.359,47.79131507]
[1771441778308,46.51502858,81.423,81.359,47.79131507]
[1771441778510,128.51502858,81.422,81.359,47.79131507]
[1771441779203,57.57362858,81.421,81.379,11.0643]
[1771441779511,57.57362858,81.421,81.359,47.79131507]
[1771441780810,82.0,81.422,81.359,47.79131507]
[1771441780811,57.57462858,81.414,81.372,11.0652]
[1771441781713,57.57562858,81.406,81.364,11.0663]
[1771441783416,46.51502858,81.395,81.345,47.79131507]
[1771441783916,46.51502858,81.395,81.33,47.79131507]
[1771441784712,11.0634,81.386,81.342,11.0693]
[1771441785112,58.23496213,81.386,81.342,11.0693]
[1771441786914,58.23496213,81.386,81.342,54.62148062]
[1771441787915,47.17156213,81.386,81.301,12.3]
[1771441788122,47.17156213,81.369,81.311,43.55218062]
[1771441789923,47.17156213,81.369,81.313,43.55218062]
[1771441790223,47.17156213,81.369,81.323,43.55218062]
[1771441790426,47.17156213,81.387,81.323,43.55218062]
[1771441791025,11.0654,81.371,81.325,11.0716]
[1771441791418,11.0654,81.371,81.326,43.55218062]
[1771441792829,58.23696213,81.371,81.325,11.0716]
[1771441793223,58.23696213,81.371,81.312,43.55218062]
[1771441793224,58.23796213,81.364,81.316,11.0728]
[1771441793731,58.23796213,81.364,81.312,43.55218062]
[1771441794827,58.23796213,81.364,81.323,11.0719]
[1771441796130,58.23796213,81.364,81.323,54.62408062]
[1771441796334,11.0654,81.372,81.324,43.55218062]
[1771441796532,47.17156213,81.391,81.332,43.55218062]
[1771441797324,11.0622,81.395,81.349,43.67258152]
[1771441797836,11.0612,81.402,81.358,43.67258152]
[1771441798730,11.0612,81.402,81.361,11.0666]
[1771441798929,46.15142579,81.396,81.337,43.67258152]
[1771441799639,11.0639,81.382,81.337,43.67258152]
[1771441800234,46.15142579,81.396,81.337,43.67258152]
[1771441800428,46.15142579,81.414,81.352,43.67258152]
[1771441801649,11.0617,81.398,81.358,11.0671]
[1771441802347,11.0617,81.398,81.359,43.67258152]
[1771441802546,49.24376653,81.39,81.344,43.67258152]
[1771441802748,49.24376653,81.38,81.321,43.67258152]
[1771441803344,46.15142579,81.38,81.336,54.74268152]
[1771441804252,82.0,81.389,81.344,43.67258152]
[1771441804554,128.15142579,81.395,81.344,43.67258152]
[1771441804850,11.0624,81.393,81.344,43.67258152]
[1771441805453,46.15142579,81.416,81.358,43.67258152]
[1771441806044,164.83142579,81.429,81.358,43.67258152]
[1771441806355,11.0585,81.422,81.377,11.0645]
[1771441807255,46.15142579,81.428,81.38,43.67258152]
[1771441808751,57.20922579,81.427,81.38,43.67258152]
[1771441809151,9.35112296,81.435,81.38,43.67258152]
[1771441809349,46.15142579,81.439,81.38,43.67258152]
[1771441810063,46.15142579,81.437,81.361,43.67258152]
[1771441810245,46.15142579,81.435,81.361,43.67258152]
[1771441810448,46.15142579,81.418,81.366,11.066]
[1771441810645,46.15142579,81.418,81.361,43.67258152]
[1771441811753,11.0594,81.416,81.371,11.0653]
[1771441814857,11.0594,81.416,81.371,54.73788152]
[1771441817454,45.96989458,81.408,81.354,42.95640598]
[1771441818658,11.0612,81.402,81.362,11.0665]
[1771441818854,11.0612,81.402,81.354,42.95640598]
[1771441818855,45.96989458,81.402,81.354,42.95640598]
[1771441819056,45.96989458,81.402,81.333,42.95640598]
[1771441819257,11.0628,81.39,81.352,11.0679]
[1771441819455,11.0628,81.39,81.303,12.3]
[1771441819456,45.96989458,81.39,81.289,42.95640598]
[1771441819659,45.96989458,81.369,81.289,42.95640598]
[1771441819862,45.96989458,81.349,81.289,42.95640598]
[1771441820064,45.96989458,81.347,81.289,42.95640598]
[1771441820460,57.03949458,81.34,81.29,11.0763]
[1771441820660,45.96989458,81.34,81.289,42.95640598]
[1771441820855,45.96989458,81.339,81.289,42.95640598]
[1771441821468,119.52,81.34,81.282,11.0775]
[1771441821469,57.04059458,81.333,81.282,11.0775]
[1771441821965,57.04059458,81.333,81.283,42.95640598]
[1771441822757,45.96989458,81.325,81.275,5.16764073]
[1771441823760,11.073,81.315,81.275,5.16764073]
[1771441824567,119.84,81.322,81.275,5.16764073]
[1771441824766,11.0718,81.324,81.275,5.16764073]
[1771441824964,3.09892949,81.35,81.3,3.09892949]
[1771441825270,101.19892949,81.35,81.3,3.09892949]
[1771441825667,3.09892949,81.34,81.3,3.09892949]
[1771441826367,3.09892949,81.34,81.291,54.03260598]
[1771441826870,3.09892949,81.34,81.295,42.95640598]
[1771441827163,11.0677,81.354,81.301,42.95640598]
[1771441827361,3.09892949,81.35,81.301,42.95640598]
[1771441827560,11.0677,81.354,81.304,42.95640598]
[1771441828562,57.03759458,81.354,81.304,42.95640598]
[1771441828761,57.03759458,81.354,81.305,11.0744]
[1771441828967,57.03759458,81.354,81.305,54.03080598]
[1771441829262,45.96989458,81.354,81.305,54.03080598]
[1771441829862,45.96989458,81.354,81.306,42.95640598]
[1771441830362,45.96989458,81.354,81.308,54.03030598]
[1771441830763,44.1337,81.362,81.314,11.0731]
[1771441830964,44.1337,81.362,81.315,42.95640598]
[1771441831374,44.1337,81.362,81.317,42.95640598]
[1771441832362,44.1337,81.362,81.316,11.0728]
[1771441832363,45.96989458,81.409,81.323,42.95640598]
[1771441832566,45.96989458,81.409,81.324,77.4]
[1771441832763,45.96989458,81.407,81.325,42.95640598]
[1771441832960,45.96989458,81.387,81.325,42.95640598]
[1771441834365,45.96989458,81.407,81.327,42.95640598]
[1771441835661,45.96989458,81.406,81.359,42.95640598]
[1771441835860,36.89,81.429,81.359,42.95640598]
[1771441835861,36.89,81.428,81.359,42.95640598]
[1771441836170,45.96989458,81.413,81.341,42.95640598]
[1771441837372,45.96989458,81.412,81.341,42.95640598]
[1771441837564,46.04734983,81.385,81.341,42.95640598]
[1771441837765,46.04734983,81.385,81.323,42.95640598]
[1771441838269,45.96989458,81.385,81.323,42.95640598]
[1771441838871,45.96989458,81.385,81.342,11.0692]
[1771441839770,45.96989458,81.381,81.301,42.95640598]
[1771441839973,45.96989458,81.379,81.301,42.95640598]
[1771441840872,57.03519458,81.372,81.322,11.072]
[1771441841264,57.03519458,81.372,81.329,11.071]
[1771441841465,11.0637,81.384,81.317,42.95640598]
[1771441842664,11.0637,81.384,81.337,11.0699]
[1771441845161,57.82961935,81.384,81.337,11.0699]
[1771441845364,57.83051935,81.377,81.331,42.95640598]
[1771441845868,57.83051935,81.377,81.332,11.0706]
[1771441846070,46.76591935,81.377,81.333,43.19635713]
[1771441846266,120.9,81.382,81.333,43.19635713]
[1771441846464,46.76591935,81.39,81.343,43.19635713]
[1771441847777,46.76591935,81.39,81.346,54.26515713]
[1771441848174,46.76591935,81.39,81.326,77.4]
[1771441848369,46.76591935,81.382,81.327,43.19635713]
[1771441849473,57.83061935,81.377,81.328,11.0711]
[1771441851074,46.76591935,81.377,81.327,43.19635713]
[1771441851280,46.76591935,81.392,81.327,43.19635713]
[1771441852082,11.0627,81.391,81.351,11.068]
[1771441852284,11.0627,81.391,81.343,43.19635713]
[1771441853584,11.0627,81.391,81.35,11.0681]
[1771441854184,11.0635,81.385,81.343,54.26555713]
[1771441854578,46.76591935,81.392,81.343,43.19635713]
[1771441855176,57.82851935,81.392,81.35,11.0682]
[1771441855580,46.76591935,81.392,81.35,11.0682]
[1771441856782,11.0634,81.386,81.35,11.0682]
[1771441856984,11.0634,81.386,81.343,54.26545713]
[1771441857376,11.0634,81.386,81.344,43.19635713]
[1771441858381,46.76591935,81.392,81.346,11.0687]
[1771441859388,42.14202801,81.405,81.347,43.79896229]
[1771441860389,42.14202801,81.405,81.362,11.0666]
[1771441860390,11.0614,81.401,81.362,11.0666]
[1771441860590,120.76,81.416,81.34,8.29372255]
[1771441860591,120.74,81.415,81.36,43.79896229]
[1771441860785,42.14202801,81.432,81.36,52.09268484]
[1771441861092,260.10877133,81.44,81.399,11.0615]
[1771441861483,42.14202801,81.439,81.399,11.0615]
[1771441861682,42.14202801,81.439,81.391,11.0626]
[1771441862079,42.14202801,81.439,81.387,43.79896229]
[1771441862283,260.10877133,81.44,81.391,43.79896229]
[1771441862586,22.0984,81.491,81.391,43.79896229]
[1771441862587,42.14202801,81.479,81.391,43.79896229]
[1771441862790,77.42,81.497,81.411,43.79896229]
[1771441862987,42.14202801,81.491,81.413,43.79896229]
[1771441863288,42.14202801,81.482,81.413,43.79896229]
[1771441863685,42.14202801,81.461,81.41,11.06]
[1771441864293,0.07762566,81.444,81.41,11.06]
[1771441864895,42.21965367,81.444,81.386,77.4]
[1771441865092,0.07762566,81.444,81.387,43.79896229]
[1771441865394,42.14202801,81.46,81.413,11.0596]
[1771441866795,42.14202801,81.458,81.389,43.79896229]
[1771441867684,42.14202801,81.453,81.404,11.0609]
[1771441868088,42.14202801,81.453,81.389,43.79896229]
[1771441868285,42.14202801,81.45,81.402,11.061]
[1771441868490,0.0780782,81.437,81.389,43.79896229]
[1771441868688,11.31459426,81.5,81.389,43.79896229]
[1771441868689,42.14202801,81.472,81.4,8.29372255]
[1771441868992,42.14202801,81.472,81.413,43.79896229]
[1771441870699,11.0519,81.471,81.434,0.07760912]
[1771441870899,55.1856,81.471,81.434,0.07760912]
[1771441871694,44.1337,81.471,81.434,0.07760912]
[1771441872298,11.0522,81.469,81.434,0.07760912]
[1771441872496,53.19422801,81.469,81.434,0.07760912]
[1771441873000,42.14202801,81.469,81.434,0.07760912]
[1771441874898,42.14202801,81.465,81.38,43.79896229]
[1771441875306,77.36,81.464,81.405,44.37872102]
[1771441875696,45.33613582,81.463,81.405,44.37872102]
[1771441875896,45.33613582,81.463,81.413,44.37872102]
[1771441876095,45.33613582,81.48,81.413,44.37872102]
[1771441877707,11.0513,81.475,81.427,11.0576]
[1771441877903,45.33613582,81.48,81.413,44.37872102]
[1771441878303,45.33613582,81.473,81.427,11.0578]
[1771441880615,45.33613582,81.473,81.433,11.0569]
[1771441880808,45.33613582,81.488,81.413,44.37872102]
[1771441881007,0.07761353,81.458,81.413,44.37872102]
[1771441881404,45.33613582,81.524,81.413,44.37872102]
[1771441881709,45.33613582,81.524,81.451,44.37872102]
[1771441882108,45.33613582,81.524,81.47,52.64572246]
[1771441882414,45.33613582,81.524,81.46,52.64572246]
[1771441882713,45.33613582,81.524,81.473,11.0514]
[1771441882914,45.33613582,81.524,81.46,52.64572246]
[1771441883120,11.0448,81.523,81.463,11.0528]
[1771441883311,45.33613582,81.522,81.444,44.37872102]
[1771441883703,45.33613582,81.522,81.43,8.26700144]
[1771441883704,45.33613582,81.522,81.451,43.57668546]
[1771441883908,45.33613582,81.515,81.451,43.57668546]
[1771441884506,45.33613582,81.504,81.443,11.0555]
[1771441884719,45.33613582,81.504,81.437,43.45384924]
[1771441885314,45.33613582,81.49,81.421,43.32960641]
[1771441886313,11.0494,81.489,81.436,11.0565]
[1771441886514,45.15700144,81.54,81.388,22.1262]
[1771441886515,45.33613582,81.506,81.437,43.09480221]
[1771441886715,45.33613582,81.506,81.439,43.09480221]
[1771441887620,45.33613582,81.506,81.44,43.60039524]
[1771441887819,45.33613582,81.506,81.466,11.0524]
[1771441888211,45.33613582,81.506,81.457,11.0537]
[1771441890721,45.33613582,81.504,81.457,11.0537]
[1771441891216,45.33613582,81.504,81.44,43.60039524]
[1771441892015,45.33613582,81.504,81.464,11.0527]
[1771441892517,8.26700144,81.52,81.464,11.0527]
[1771441892518,64.33613582,81.519,81.464,11.0527]
[1771441892719,64.33613582,81.519,81.472,11.0516]
[1771441893225,120.76,81.526,81.455,42.80066119]
[1771441893226,45.33613582,81.533,81.455,42.80066119]
[1771441893822,45.33613582,81.533,81.486,11.0498]
[1771441895722,45.33613582,81.551,81.48,42.39121159]
[1771441895926,77.32,81.548,81.48,42.39121159]
[1771441896126,45.33613582,81.534,81.48,42.39121159]
[1771441896715,45.33613582,81.527,81.48,11.0506]
[1771441896921,45.33613582,81.527,81.465,42.28407709]
[1771441898321,45.33613582,81.527,81.41,36.89]
[1771441898322,45.33613582,81.516,81.47,11.0519]
[1771441898821,0.07767444,81.504,81.47,11.0519]
[1771441899218,0.07767444,81.504,81.476,11.051]
[1771441899722,45.33613582,81.516,81.476,11.051]
[1771441901230,45.33613582,81.516,81.469,11.0521]
[1771441901629,45.33613582,81.516,81.448,41.15655898]
[1771441901934,45.33613582,81.508,81.462,11.053]
[1771441903228,45.33613582,81.506,81.454,11.054]
[1771441903634,45.33613582,81.506,81.448,41.15655898]
[1771441903934,45.33613582,81.506,81.46,11.0532]
[1771441904134,45.33613582,81.506,81.428,41.41440389]
[1771441904634,45.33613582,81.504,81.459,11.0534]
[1771441905830,42.52151176,81.496,81.429,40.98578097]
[1771441906429,42.52151176,81.496,81.45,11.0545]
[1771441907136,42.52151176,81.486,81.414,40.89123964]
[1771441907630,83.06,81.495,81.414,40.89123964]
[1771441907631,42.52151176,81.473,81.414,40.89123964]
[1771441908232,42.52151176,81.46,81.414,40.89123964]
[1771441908426,42.52151176,81.46,81.391,39.74536474]
[1771441908625,42.52151176,81.458,81.409,11.0601]
[1771441908938,42.52151176,81.458,81.391,39.74536474]
[1771441909739,42.52151176,81.446,81.37,39.47105741]
[1771441910243,42.52151176,81.444,81.37,39.47105741]
[1771441911138,11.0572,81.432,81.376,11.0647]
[1771441911438,11.0572,81.432,81.37,39.47105741]
[1771441911439,42.52151176,81.429,81.354,39.29210441]
[1771441912237,42.52151176,81.442,81.367,37.65732528]
[1771441912435,42.52151176,81.442,81.371,37.65732528]
[1771441913645,42.52151176,81.442,81.373,37.11962923]
[1771441914444,42.52151176,81.442,81.37,8.26700144]
[1771441914445,11.0559,81.441,81.387,37.03216037]
[1771441914937,42.52151176,81.44,81.387,37.03216037]
[1771441915137,42.52151176,81.438,81.383,11.0637]
[1771441916345,42.52151176,81.438,81.37,85.58700144]
[1771441916346,11.0571,81.433,81.386,11.0632]
[1771441916643,11.0571,81.433,81.387,36.86830665]
[1771441917041,42.52151176,81.438,81.39,36.86830665]
[1771441917245,42.52151176,81.455,81.39,36.86830665]
[1771441918346,40.17236568,81.444,81.391,11.0625]
[1771441919646,11.0559,81.442,81.391,11.0625]
[1771441919851,40.17236568,81.442,81.401,11.0612]
[1771441920053,40.17236568,81.442,81.392,36.78893268]
[1771441920756,11.0561,81.44,81.393,11.0623]
[1771441921744,51.22846568,81.44,81.393,11.0623]
[1771441921939,40.17236568,81.437,81.385,11.0634]
[1771441922645,40.17236568,81.427,81.353,77.36]
[1771441922857,19.0,81.458,81.352,36.71353294]
[1771441922858,40.17236568,81.419,81.352,36.71353294]
[1771441923045,40.17236568,81.419,81.333,36.71353294]
[1771441923246,40.17236568,81.391,81.333,36.71353294]
[1771441923953,11.0648,81.376,81.334,11.0703]
[1771441924348,11.0648,81.376,81.317,36.64920632]
[1771441924349,40.17236568,81.375,81.317,36.64920632]
[1771441925148,40.17236568,81.371,81.317,36.64920632]
[1771441925350,40.17236568,81.371,81.296,77.36]
[1771441925550,40.17236568,81.371,81.301,36.50007025]
[1771441926146,109.84700144,81.38,81.301,36.50007025]
[1771441926147,40.17236568,81.367,81.301,36.50007025]
[1771441926750,40.17236568,81.367,81.311,11.0735]
[1771441927649,51.23836568,81.367,81.311,11.0735]
[1771441927849,40.17236568,81.366,81.311,11.0735]
[1771441928446,40.17236568,81.362,81.302,11.0747]
[1771441928651,40.17236568,81.362,81.29,8.26700144]
[1771441929051,40.17236568,81.347,81.294,11.0758]
[1771441929256,40.17236568,81.347,81.285,35.35992093]
[1771441930755,11.0702,81.336,81.286,11.0769]
[1771441933754,40.17236568,81.333,81.285,35.35992093]
[1771441934151,40.17236568,81.333,81.286,11.0769]
[1771441934861,40.17236568,81.319,81.267,34.88633433]
[1771441936761,41.05280891,81.318,81.267,34.88633433]
[1771441937061,41.05280891,81.349,81.275,39.65973046]
[1771441937251,11.0704,81.335,81.284,11.0771]
[1771441937455,41.05280891,81.334,81.285,34.33801902]
[1771441937857,41.05280891,81.334,81.289,11.0765]
[1771441938864,11.0687,81.347,81.296,11.0755]
[1771441939359,41.05280891,81.367,81.328,11.0712]
[1771441939555,41.05280891,81.367,81.317,34.18260047]
[1771441939957,41.05280891,81.367,81.32,11.0722]
[1771441940858,41.05280891,81.365,81.311,11.0734]
[1771441941364,41.05280891,81.365,81.318,11.0725]
[1771441942054,41.05280891,81.363,81.311,34.44817133]
[1771441942254,41.05280891,81.363,81.3,8.28969277]
[1771441943066,41.05280891,81.363,81.294,33.47616536]
[1771441943669,11.0686,81.348,81.301,11.0748]
[1771441943862,41.05280891,81.363,81.301,11.0748]
[1771441945565,41.05280891,81.356,81.308,11.0739]
[1771441945764,41.05280891,81.356,81.294,33.47616536]
[1771441946164,11.0686,81.348,81.301,11.0749]
[1771441946866,52.12200891,81.344,81.294,44.55196536]
[1771441947065,52.12200891,81.344,81.294,33.47616536]
[1771441948369,41.05280891,81.359,81.307,32.71638878]
[1771441948570,41.05280891,81.388,81.307,32.71638878]
[1771441949668,41.05280891,81.368,81.321,11.0721]
[1771441950666,11.0659,81.367,81.321,11.0721]
[1771441951165,11.0659,81.367,81.307,32.71638878]
[1771441951166,41.05280891,81.366,81.307,32.71638878]
[1771441951367,41.05280891,81.366,81.314,33.00175714]
[1771441952263,41.05280891,81.364,81.314,33.00175714]
[1771441952572,41.05280891,81.364,81.301,32.90253356]
[1771441953371,41.05280891,81.364,81.246,36.89]
[1771441953372,41.05280891,81.349,81.284,32.78259038]
[1771441953872,11.0698,81.339,81.284,32.78259038]
[1771441954072,41.05280891,81.338,81.284,32.78259038]
[1771441954468,11.0717,81.325,81.284,43.85969038]
[1771441954674,41.05280891,81.338,81.284,43.85969038]
[1771441954870,41.05280891,81.338,81.284,11.0771]
[1771441955768,41.05280891,81.331,81.284,11.0771]
[1771441956670,41.05280891,81.346,81.294,33.32072003]
[1771441957378,41.05280891,81.359,81.312,11.0733]
[1771441957878,41.05280891,81.359,81.294,33.32072003]
[1771441958177,41.05280891,81.348,81.303,11.0745]
[1771441959476,41.05280891,81.342,81.294,33.32072003]
[1771441960680,41.05280891,81.342,81.301,11.0748]
[1771441961280,41.05280891,81.342,81.299,11.0751]
[1771441962784,120.36,81.369,81.294,33.32072003]
[1771441962785,11.0683,81.35,81.306,11.0742]
[1771441963484,11.0691,81.344,81.299,43.32117263]
[1771441963687,41.05280891,81.343,81.299,43.32117263]
[1771441963885,41.05280891,81.343,81.283,32.24607263]
[1771441964181,41.05280891,81.33,81.285,11.077]
[1771441965178,41.05280891,81.33,81.291,11.0761]
[1771441968397,41.05280891,81.33,81.298,11.0752]
[1771441969095,41.05280891,81.33,81.291,11.0761]
[1771441969388,41.05280891,81.33,81.283,32.24607263]
[1771441969596,41.05280891,81.33,81.291,11.0763]
[1771441970698,41.05280891,81.33,81.269,31.40430358]
[1771441970897,41.05280891,81.33,81.26,8.28969277]
[1771441970898,41.05280891,81.33,81.275,36.57194431]
[1771441971690,11.0717,81.325,81.281,11.0776]
[1771441972289,41.05280891,81.33,81.287,11.0767]
[1771441972493,41.05280891,81.33,81.275,36.57194431]
[1771441972693,8.28969277,81.36,81.281,31.22383286]
[1771441972694,40.07346937,81.354,81.281,31.22383286]
[1771441972997,40.07346937,81.352,81.281,31.22383286]
[1771441973191,40.07346937,81.35,81.281,31.22383286]
[1771441973390,11.0707,81.333,81.281,31.22383286]
[1771441973995,40.07346937,81.312,81.275,5.16764073]
[1771441976598,40.07346937,81.301,81.275,4.77897836]
[1771441979202,591.24677357,81.467,81.275,4.77897836]
[1771441979203,11.0729,81.316,81.275,4.77897836]
[1771441979700,11.0736,81.311,81.275,4.77897836]
[1771441979897,38.25359408,81.315,81.275,4.77897836]
[1771441980393,38.25359408,81.315,81.276,11.0782]
[1771441981507,38.25359408,81.315,81.282,11.0775]
[1771441983003,38.25359408,81.331,81.282,11.0775]
[1771441983404,38.25359408,81.329,81.282,11.0775]
[1771441984003,38.25359408,81.329,81.29,3.09838139]
[1771441984905,38.25359408,81.329,81.289,11.0764]
[1771441985308,38.25359408,81.327,81.282,11.0774]
[1771441985900,38.25359408,81.327,81.289,11.0765]
[1771441986102,38.25359408,81.327,81.28,3.09838139]
[1771441986805,38.25359408,81.319,81.275,4.77897836]
[1771441987004,38.25359408,81.309,81.275,4.77897836]
[1771441987896,38.25359408,81.307,81.275,4.77897836]
[1771441989701,38.25359408,81.304,81.275,4.77897836]
[1771441990711,38.25359408,81.304,81.228,77.4]
[1771441990712,38.25359408,81.293,81.249,11.0819]
[1771441991422,38.25359408,81.291,81.249,11.0819]
[1771441997317,37.93355638,81.289,81.242,11.0829]
[1771441997613,37.93355638,81.289,81.236,33.89224351]
[1771441998812,37.93355638,81.289,81.248,11.082]
[1771442000322,37.93355638,81.286,81.209,32.49257141]
[1771442000614,8.30568802,81.3,81.18,30.39280476]
[1771442000615,37.93355638,81.259,81.194,32.49257141]
[1771442000819,37.93355638,81.258,81.194,32.49257141]
[1771442001620,37.93355638,81.239,81.175,5.17400678]
[1771442001812,8.30568802,81.24,81.175,5.17400678]
[1771442001813,37.93355638,81.237,81.175,5.17400678]
[1771442002018,37.93355638,81.235,81.175,5.17400678]
[1771442002412,77.4,81.236,81.175,16.26600678]
[1771442002413,37.93355638,81.234,81.175,16.26600678]
[1771442002614,37.93355638,81.219,81.175,5.17400678]
[1771442002923,37.93355638,81.219,81.148,35.48550565]
[1771442003116,37.93355638,81.217,81.148,35.48550565]
[1771442003311,37.93355638,81.215,81.132,35.48550565]
[1771442003518,37.93355638,81.199,81.125,5.17719569]
[1771442003913,37.93355638,81.186,81.132,11.0979]
[1771442004115,37.93355638,81.186,81.125,5.17719569]
[1771442004417,37.93355638,81.184,81.125,5.17719569]
[1771442004723,37.93355638,81.183,81.125,5.17719569]
[1771442005518,37.93355638,81.178,81.125,5.17719569]
[1771442006323,37.93355638,81.177,81.125,5.17719569]
[1771442006816,37.93355638,81.159,81.087,35.48550565]
[1771442007018,37.93355638,81.179,81.101,35.48550565]
[1771442007220,37.93355638,81.177,81.101,35.48550565]
[1771442007618,104.98,81.176,81.101,35.48550565]
[1771442007815,37.93355638,81.175,81.103,35.48550565]
[1771442008616,37.93355638,81.175,81.107,35.48550565]
[1771442009613,37.93355638,81.164,81.094,11.1032]
[1771442009918,37.93355638,81.162,81.094,11.1032]
[1771442010311,37.93355638,81.159,81.094,11.1032]
[1771442011226,37.93355638,81.157,81.096,46.58830565]
[1771442011421,37.93355638,81.157,81.097,35.48550565]
[1771442011721,37.93355638,81.155,81.086,11.1042]
[1771442011922,37.93355638,81.186,81.1,8.30568802]
[1771442012123,37.93355638,81.179,81.1,43.79119367]
[1771442012428,37.93355638,81.179,81.102,35.48550565]
[1771442012819,37.93355638,81.179,81.104,35.48550565]
[1771442014221,37.93355638,81.179,81.121,35.48550565]
[1771442015127,37.93355638,81.194,81.121,35.48550565]
[1771442015314,37.93355638,81.194,81.132,35.48550565]
[1771442016122,37.93355638,81.194,81.144,35.48550565]